Workbook

Sheet ТП
A1: Школа | C1: МБОУ "Многопрофильный лицей №18 имени М.В.Ломоносова ЗМР РТ" | F1: Утвердил: | G1: должность
A2: Типовое примерное меню приготавливаемых блюд | G2: фамилия
A3: Возрастная категория | E3: 7-11 лет | G3: дата | H3: 12 | I3: 1 | J3: 2026
H4: день | I4: месяц | J4: год
A5: Неделя | B5: День недели | C5: Прием пищи | D5: Раздел меню | E5: Блюда | F5: Вес блюда, г | G5: Белки | H5: Жиры | I5: Углеводы | J5: Калорийность | K5: № рецептуры | L5: Цена
A6: 1 | B6: 1 | C6: Завтрак | D6: гор.блюдо | E6: Каша рисовая вязкая молочная с маслом сливочным | F6: 207 | G6: 6 | H6: 9 | I6: 42 | J6: 269 | K6: №510 табл.4 | L6: 32.80
D8: гор.напиток | E8: Чай с сахаром и лимоном | F8: 222 | G8: 0 | H8: 0 | I8: 15 | J8: 59 | K8: №686 сб.2004 г. | L8: 6.50
D9: хлеб | E9: Хлеб/Батон (порциями) | F9: 30 | G9: 2 | H9: 0 | I9: 12 | J9: 60 | K9: №1 сб.2004 г./ ТТК №27 | L9: 3.46
D10: фрукты
D11: сладкое | E11: Пирожное песочное 1 шт | F11: 50 | G11: 8 | H11: 10 | I11: 13 | J11: 174 | L11: 35.00
D13: итого | F13: =SUM(F6:F12) -> 509 | G13: =SUM(G6:G12) -> 16 | H13: =SUM(H6:H12) -> 19 | I13: =SUM(I6:I12) -> 82 | J13: =SUM(J6:J12) -> 562 | L13: =SUM(L6:L12) -> 77.76
A14: =A6 -> 1 | B14: =B6 -> 1 | C14: Обед | D14: закуска
D15: 1 блюдо
D16: 2 блюдо
D17: гарнир
D18: напиток
D19: хлеб бел.
D20: хлеб черн.
D23: итого | F23: =SUM(F14:F22) -> 0 | G23: 0 | H23: 0 | I23: 0 | J23: 0 | L23: =SUM(L14:L22) -> 0.00
A24: =A6 -> 1 | B24: =B6 -> 1 | C24: Итого за день: | F24: =F13+F23 -> 509 | G24: 16 | H24: 19 | I24: 82 | J24: 562 | L24: =L13+L23 -> 77.76
A25: 1 | B25: 2 | C25: Завтрак | D25: гор.блюдо
D26: гарнир | E26: Макаронные изделия отварные | F26: 170 | G26: 6 | H26: 5 | I26: 36 | J26: 213 | K26: ТТК №307С | L26: 10.90
D27: гор.напиток | E27: Чай полусладкий с черносливом | F27: 217 | G27: 0 | H27: 0 | I27: 14 | J27: 55 | K27: ТТК №515С | L27: 7.00
D28: хлеб | E28: Хлеб/Батон (порциями) | F28: 35 | G28: 2 | H28: 0 | I28: 14 | J28: 70 | K28: №1 сб.2004 г./ ТТК №27 | L28: 3.86
D29: фрукты
D30: 2 блюдо | E30: Котлеты Любительские с соусом красным основным | F30: 100 | G30: 11 | H30: 11 | I30: 14 | J30: 198 | K30: ТТК №286, ТТК №362 | L30: 56.00
D32: итого | F32: =SUM(F25:F31) -> 522 | G32: =SUM(G25:G31) -> 19 | H32: =SUM(H25:H31) -> 16 | I32: =SUM(I25:I31) -> 78 | J32: =SUM(J25:J31) -> 536 | L32: =SUM(L25:L31) -> 77.76
A33: =A25 -> 1 | B33: =B25 -> 2 | C33: Обед | D33: закуска
D34: 1 блюдо
D35: 2 блюдо
D36: гарнир
D37: напиток
D38: хлеб бел.
D39: хлеб черн.
D42: итого | F42: =SUM(F33:F41) -> 0 | G42: 0 | H42: 0 | I42: 0 | J42: 0 | L42: =SUM(L33:L41) -> 0.00
A43: =A25 -> 1 | B43: =B25 -> 2 | C43: Итого за день: | F43: =F32+F42 -> 522 | G43: 19 | H43: 16 | I43: 78 | J43: 536 | L43: =L32+L42 -> 77.76
A44: 1 | B44: 3 | C44: Завтрак | D44: гор.блюдо | E44: Пюре картофельное с сосиской отварной для детского питания 1 шт | F44: 230 | G44: 13 | H44: 14 | I44: 43 | J44: 356 | K44: ТТК №308С, №413 сб.2004 | L44: 63.40
D46: гор.напиток | E46: Чай с сахаром | F46: 215 | G46: 0 | H46: 0 | I46: 15 | J46: 57 | K46: №685 сб. 2004 г. | L46: 3.50
D47: хлеб | E47: Хлеб/Батон (порциями) | F47: 35 | G47: 2 | H47: 0 | I47: 14 | J47: 70 | K47: №1 сб.2004 г./ ТТК №27 | L47: 3.86
D48: фрукты
D49: сладкое | E49: Вафли неглазированные 1 шт | F49: 20 | G49: 1 | H49: 5 | I49: 9 | J49: 81 | L49: 7.00
D51: итого | F51: =SUM(F44:F50) -> 500 | G51: =SUM(G44:G50) -> 16 | H51: =SUM(H44:H50) -> 19 | I51: =SUM(I44:I50) -> 81 | J51: =SUM(J44:J50) -> 564 | L51: =SUM(L44:L50) -> 77.76
A52: =A44 -> 1 | B52: =B44 -> 3 | C52: Обед | D52: закуска
D53: 1 блюдо
D54: 2 блюдо
D55: гарнир
D56: напиток
D57: хлеб бел.
D58: хлеб черн.
D61: итого | F61: =SUM(F52:F60) -> 0 | G61: 0 | H61: 0 | I61: 0 | J61: 0 | L61: =SUM(L52:L60) -> 0.00
A62: =A44 -> 1 | B62: =B44 -> 3 | C62: Итого за день: | F62: =F51+F61 -> 500 | G62: 16 | H62: 19 | I62: 81 | J62: 564 | L62: =L51+L61 -> 77.76
A63: 1 | B63: 4 | C63: Завтрак | D63: гор.блюдо
D64: гарнир | E64: Каша гречневая вязкая | F64: 170 | G64: 5 | H64: 6 | I64: 32 | J64: 200 | K64: ТТК №302С | L64: 11.10
D65: гор.напиток | E65: Чай с сахаром | F65: 215 | G65: 0 | H65: 0 | I65: 15 | J65: 57 | K65: №685 сб. 2004 г. | L65: 3.50
D66: хлеб | E66: Хлеб/Батон (порциями) | F66: 30 | G66: 2 | H66: 0 | I66: 12 | J66: 60 | K66: №1 сб.2004 г./ ТТК №27 | L66: 3.06
D67: фрукты
D68: 2 блюдо | E68: Биточки Дружба с соусом красным основным | F68: 100 | G68: 10 | H68: 11 | I68: 10 | J68: 180 | K68: ТТК №355, ТТК №362 | L68: 60.10
D69: сладкое
D70: итого | F70: =SUM(F63:F69) -> 515 | G70: =SUM(G63:G69) -> 17 | H70: =SUM(H63:H69) -> 17 | I70: =SUM(I63:I69) -> 69 | J70: =SUM(J63:J69) -> 497 | L70: =SUM(L63:L69) -> 77.76
A71: =A63 -> 1 | B71: =B63 -> 4 | C71: Обед | D71: закуска
D72: 1 блюдо
D73: 2 блюдо
D74: гарнир
D75: напиток
D76: хлеб бел.
D77: хлеб черн.
D80: итого | F80: =SUM(F71:F79) -> 0 | G80: 0 | H80: 0 | I80: 0 | J80: 0 | L80: =SUM(L71:L79) -> 0.00
A81: =A63 -> 1 | B81: =B63 -> 4 | C81: Итого за день: | F81: =F70+F80 -> 515 | G81: 17 | H81: 17 | I81: 69 | J81: 497 | L81: =L70+L80 -> 77.76
A82: 1 | B82: 5 | C82: Завтрак | D82: гор.блюдо
D83: гарнир | E83: Макаронные изделия отварные с доп.гарниром овощи свежие порционно | F83: 180 | G83: 6 | H83: 5 | I83: 36 | J83: 213 | K83: ТТК №307С, табл.24 сб.1996 | L83: 16.30
D84: гор.напиток | E84: Напиток из шиповника с апельсином | F84: 200 | G84: 0 | H84: 0 | I84: 17 | J84: 66 | K84: ТТК №501С | L84: 7.50
D85: хлеб | E85: Хлеб/Батон (порциями) | F85: 35 | G85: 2 | H85: 0 | I85: 14 | J85: 70 | K85: №1 сб.2004 г./ ТТК №27 | L85: 3.86
D86: фрукты
D87: 2 блюдо | E87: Гуляш из филе птицы | F87: 90 | G87: 11 | H87: 14 | I87: 3 | J87: 182 | K87: №437 сб.2004 г. | L87: 50.10
D89: итого | F89: =SUM(F82:F88) -> 505 | G89: 19 | H89: 19 | I89: 70 | J89: 531 | L89: =SUM(L82:L88) -> 77.76
A90: =A82 -> 1 | B90: 5 | C90: Обед | D90: закуска
D91: 1 блюдо
D92: 2 блюдо
D93: гарнир
D94: напиток
D95: хлеб бел.
D96: хлеб черн.
D99: итого | F99: =SUM(F90:F98) -> 0 | G99: 0 | H99: 0 | I99: 0 | J99: 0 | L99: =SUM(L90:L98) -> 0.00
A100: =A82 -> 1 | B100: 5 | C100: Итого за день: | F100: =F89+F99 -> 505 | G100: 19 | H100: 19 | I100: 70 | J100: 531 | L100: =L89+L99 -> 77.76
A101: 1 | B101: 6 | C101: Завтрак | D101: гор.блюдо | E101: Каша пшенная вязкая молочная с маслом сливочным с доп.гарниром сыр твердый порционно | F101: 215 | G101: 14 | H101: 16 | I101: 30 | J101: 325 | K101: №510 табл.4 сб.2004, №97 сб.2004 | L101: 59.90
D103: гор.напиток | E103: Чай с сахаром | F103: 215 | G103: 0 | H103: 0 | I103: 15 | J103: 57 | K103: №685 сб. 2004 г. | L103: 3.50
D104: хлеб | E104: Хлеб/Батон (порциями) | F104: 40 | G104: 3 | H104: 0 | I104: 16 | J104: 80 | K104: №1 сб.2004 г./ТТК №27 | L104: 4.36
D105: фрукты
D106: сладкое | E106: Пряники 1 шт | F106: 39 | G106: 2 | H106: 3 | I106: 13 | J106: 87 | L106: 10.00
D108: итого | F108: =SUM(F101:F107) -> 509 | G108: =SUM(G101:G107) -> 19 | H108: =SUM(H101:H107) -> 19 | I108: =SUM(I101:I107) -> 74 | J108: =SUM(J101:J107) -> 549 | L108: =SUM(L101:L107) -> 77.76
A109: =A101 -> 1 | B109: =B101 -> 6 | C109: Обед | D109: закуска
D110: 1 блюдо
D111: 2 блюдо
D112: гарнир
D113: напиток
D114: хлеб бел.
D115: хлеб черн.
D118: итого | F118: =SUM(F109:F117) -> 0 | G118: 0 | H118: 0 | I118: 0 | J118: 0 | L118: =SUM(L109:L117) -> 0.00
A119: =A101 -> 1 | B119: =B101 -> 6 | C119: Итого за день: | F119: =F108+F118 -> 509 | G119: 19 | H119: 19 | I119: 74 | J119: 549 | L119: =L108+L118 -> 77.76
A120: 2 | B120: 1 | C120: Завтрак | D120: гор.блюдо | E120: Каша молочная Дружба с маслом сливочным, яйцо вареное 1 шт | F120: 233 | G120: 12 | H120: 13 | I120: 36 | J120: 305 | K120: ТТК №84, №337 | L120: 43.70
D122: гор.напиток | E122: Напиток витаминный | F122: 200 | G122: 0 | H122: 0 | I122: 19 | J122: 78 | K122: ТТК №505С | L122: 16.70
D123: хлеб | E123: Хлеб/Батон (порциями) | F123: 30 | G123: 2 | H123: 0 | I123: 12 | J123: 60 | K123: №1 сб.2004 г./ ТТК №27 | L123: 1.36
D124: фрукты
D125: сладкое | E125: Пряник в индивидуальной упаковке 1 шт | F125: 40 | G125: 2 | H125: 4 | I125: 16 | J125: 108 | L125: 16.00
D127: итого | F127: =SUM(F120:F126) -> 503 | G127: =SUM(G120:G126) -> 16 | H127: =SUM(H120:H126) -> 17 | I127: =SUM(I120:I126) -> 83 | J127: =SUM(J120:J126) -> 551 | L127: =SUM(L120:L126) -> 77.76
A128: =A120 -> 2 | B128: =B120 -> 1 | C128: Обед | D128: закуска
D129: 1 блюдо
D130: 2 блюдо
D131: гарнир
D132: напиток
D133: хлеб бел.
D134: хлеб черн.
D137: итого | F137: =SUM(F128:F136) -> 0 | G137: 0 | H137: 0 | I137: 0 | J137: 0 | L137: =SUM(L128:L136) -> 0.00
A138: =A120 -> 2 | B138: =B120 -> 1 | C138: Итого за день: | F138: =F127+F137 -> 503 | G138: 16 | H138: 17 | I138: 83 | J138: 551 | L138: =L127+L137 -> 77.76
A139: 2 | B139: 2 | C139: Завтрак | D139: гор.блюдо | E139: Картофель тушеный с филе птицы рубленым с доп.гарниром овощи свежие порционно | F139: 200 | G139: 13 | H139: 12 | I139: 20 | J139: 240 | K139: ТТК №100С, табл.24 сб.1996 | L139: 60.60
D141: гор.напиток | E141: Чай с сахаром | F141: 215 | G141: 0 | H141: 0 | I141: 15 | J141: 57 | K141: №685 сб. 2004 г. | L141: 3.50
D142: фрукты
D143: хлеб | E143: Хлеб/Батон (порциями) | F143: 50 | G143: 3 | H143: 1 | I143: 21 | J143: 100 | K143: №1 сб.2004 г./ ТТК №27 | L143: 2.96
D144: сладкое | E144: Пряники 1 шт | F144: 39 | G144: 2 | H144: 3 | I144: 13 | J144: 87 | L144: 10.70
D146: итого | F146: =SUM(F139:F145) -> 504 | G146: =SUM(G139:G145) -> 18 | H146: =SUM(H139:H145) -> 16 | I146: =SUM(I139:I145) -> 69 | J146: =SUM(J139:J145) -> 484 | L146: =SUM(L139:L145) -> 77.76
A147: =A139 -> 2 | B147: =B139 -> 2 | C147: Обед | D147: закуска
D148: 1 блюдо
D149: 2 блюдо
D150: гарнир
D151: напиток
D152: хлеб бел.
D153: хлеб черн.
D156: итого | F156: =SUM(F147:F155) -> 0 | G156: 0 | H156: 0 | I156: 0 | J156: 0 | L156: =SUM(L147:L155) -> 0.00
A157: =A139 -> 2 | B157: =B139 -> 2 | C157: Итого за день: | F157: =F146+F156 -> 504 | G157: 18 | H157: 16 | I157: 69 | J157: 484 | L157: =L146+L156 -> 77.76
A158: 2 | B158: 3 | C158: Завтрак | D158: гор.блюдо
D159: гарнир | E159: Макаронные изделия отварные | F159: 170 | G159: 6 | H159: 5 | I159: 36 | J159: 213 | K159: ТТК №307С | L159: 10.90
D160: гор.напиток | E160: Чай с сахаром | F160: 215 | G160: 0 | H160: 0 | I160: 15 | J160: 57 | K160: №685 сб. 2004 г. | L160: 3.50
D161: хлеб | E161: Хлеб/Батон (порциями) | F161: 30 | G161: 2 | H161: 0 | I161: 12 | J161: 60 | K161: №1 сб.2004 г./ ТТК №27 | L161: 3.26
D162: фрукты
D163: 2 блюдо | E163: Биточки Дружба с соусом красным основным | F163: 100 | G163: 10 | H163: 11 | I163: 10 | J163: 180 | K163: ТТК №355, ТТК №362 | L163: 60.10
D165: итого | F165: =SUM(F158:F164) -> 515 | G165: =SUM(G158:G164) -> 18 | H165: =SUM(H158:H164) -> 16 | I165: =SUM(I158:I164) -> 73 | J165: =SUM(J158:J164) -> 510 | L165: =SUM(L158:L164) -> 77.76
A166: =A158 -> 2 | B166: =B158 -> 3 | C166: Обед | D166: закуска
D167: 1 блюдо
D168: 2 блюдо
D169: гарнир
D170: напиток
D171: хлеб бел.
D172: хлеб черн.
D175: итого | F175: =SUM(F166:F174) -> 0 | G175: 0 | H175: 0 | I175: 0 | J175: 0 | L175: =SUM(L166:L174) -> 0.00
A176: =A158 -> 2 | B176: =B158 -> 3 | C176: Итого за день: | F176: =F165+F175 -> 515 | G176: 18 | H176: 16 | I176: 73 | J176: 510 | L176: =L165+L175 -> 77.76
A177: 2 | B177: 4 | C177: Завтрак | D177: гор.блюдо | E177: Плов из цыплят | F177: 200 | G177: 13 | H177: 16 | I177: 43 | J177: 368 | K177: №492 сб.2004 г. | L177: 57.60
D179: гор.напиток | E179: Напиток апельсиновый | F179: 200 | G179: 0 | H179: 0 | I179: 17 | J179: 68 | K179: ТТК №510С | L179: 10.20
D180: фрукты
D181: хлеб | E181: Хлеб/Батон (порциями) | F181: 40 | G181: 3 | H181: 0 | I181: 16 | J181: 80 | K181: №1 сб.2004 г./ ТТК №27 | L181: 3.56
D182: закуска | E182: Свекла отварная | F182: 60 | G182: 1 | H182: 0 | I182: 5 | J182: 24 | K182: ТТК №601С | L182: 6.40
D184: итого | F184: =SUM(F177:F183) -> 500 | G184: =SUM(G177:G183) -> 17 | H184: =SUM(H177:H183) -> 16 | I184: =SUM(I177:I183) -> 81 | J184: =SUM(J177:J183) -> 540 | L184: =SUM(L177:L183) -> 77.76
A185: =A177 -> 2 | B185: =B177 -> 4 | C185: Обед | D185: закуска
D186: 1 блюдо
D187: 2 блюдо
D188: гарнир
D189: напиток
D190: хлеб бел.
D191: хлеб черн.
D194: итого | F194: =SUM(F185:F193) -> 0 | G194: 0 | H194: 0 | I194: 0 | J194: 0 | L194: =SUM(L185:L193) -> 0.00
A195: =A177 -> 2 | B195: =B177 -> 4 | C195: Итого за день: | F195: =F184+F194 -> 500 | G195: 17 | H195: 16 | I195: 81 | J195: 540 | L195: =L184+L194 -> 77.76
A196: 2 | B196: 5 | C196: Завтрак | D196: гор.блюдо
D197: гарнир | E197: Каша гречневая вязкая | F197: 170 | G197: 5 | H197: 6 | I197: 32 | J197: 200 | K197: ТТК №302С | L197: 11.10
D198: гор.напиток | E198: Чай с сахаром | F198: 215 | G198: 0 | H198: 0 | I198: 15 | J198: 57 | K198: №685 сб. 2004 г. | L198: 3.50
D199: хлеб | E199: Хлеб/Батон (порциями) | F199: 45 | G199: 3 | H199: 0 | I199: 18 | J199: 90 | K199: №1 сб.2004 г./ ТТК №27 | L199: 4.86
D200: фрукты
D201: 2 блюдо | E201: Фрикасе | F201: 100 | G201: 11 | H201: 14 | I201: 4 | J201: 180 | K201: ТТК №290С | L201: 58.30
D203: итого | F203: =SUM(F196:F202) -> 530 | G203: =SUM(G196:G202) -> 19 | H203: =SUM(H196:H202) -> 20 | I203: =SUM(I196:I202) -> 69 | J203: =SUM(J196:J202) -> 527 | L203: =SUM(L196:L202) -> 77.76
A204: =A196 -> 2 | B204: =B196 -> 5 | C204: Обед | D204: закуска
D205: 1 блюдо
D206: 2 блюдо
D207: гарнир
D208: напиток
D209: хлеб бел.
D210: хлеб черн.
D213: итого | F213: =SUM(F204:F212) -> 0 | G213: 0 | H213: 0 | I213: 0 | J213: 0 | L213: =SUM(L204:L212) -> 0.00
A214: =A196 -> 2 | B214: =B196 -> 5 | C214: Итого за день: | F214: =F203+F213 -> 530 | G214: 19 | H214: 20 | I214: 69 | J214: 527 | L214: =L203+L213 -> 77.76
A215: 2 | B215: 6 | C215: Завтрак | D215: гор.блюдо | E215: Паста с сыром | F215: 170 | G215: 16 | H215: 16 | I215: 36 | J215: 352 | K215: ТТК №301С | L215: 33.80
D217: гор.напиток | E217: Чай с сахаром и лимоном | F217: 220 | G217: 0 | H217: 0 | I217: 15 | J217: 58 | K217: №686 сб. 2004 г. | L217: 5.60
D218: хлеб | E218: Хлеб/Батон (порциями) | F218: 30 | G218: 2 | H218: 0 | I218: 12 | J218: 60 | K218: №1 сб.2004 г./ ТТК №27 | L218: 3.36
D219: сладкое | E219: Пюре фруктовое 1 шт | F219: 90 | G219: 0 | H219: 0 | I219: 8 | J219: 32 | L219: 35.00
D222: итого | F222: =SUM(F215:F221) -> 510 | G222: =SUM(G215:G221) -> 18 | H222: =SUM(H215:H221) -> 16 | I222: =SUM(I215:I221) -> 71 | J222: =SUM(J215:J221) -> 502 | L222: =SUM(L215:L221) -> 77.76
A223: =A215 -> 2 | B223: =B215 -> 6 | C223: Обед | D223: закуска
D224: 1 блюдо
D225: 2 блюдо
D226: гарнир
D227: напиток
D228: хлеб бел.
D229: хлеб черн.
D232: итого | F232: =SUM(F223:F231) -> 0 | G232: 0 | H232: 0 | I232: 0 | J232: 0 | L232: =SUM(L223:L231) -> 0.00
A233: =A215 -> 2 | B233: =B215 -> 6 | C233: Итого за день: | F233: =F222+F232 -> 510 | G233: 18 | H233: 16 | I233: 71 | J233: 502 | L233: =L222+L232 -> 77.76
